bitfinex-derivatives/quotes_BTCF0:USTF0_20210706
["timestamp","ask_amount","ask_price","bid_price","bid_amount"]
[1625563247856,0.05497544,34273.0,34266.0,0.91161]
[1625563247955,0.05497544,34273.0,34266.0,0.85261]
[1625563248056,0.05497544,34273.0,34266.0,0.85606194]
[1625563248259,0.11397544,34273.0,34266.0,0.85606194]
[1625563248356,0.11397544,34273.0,34267.0,0.00345194]
[1625563248455,0.08237544,34273.0,34267.0,0.06245194]
[1625563248556,0.02337544,34273.0,34267.0,0.059]
[1625563248907,0.02337544,34273.0,34272.0,0.24057544]
[1625563249011,0.02337544,34273.0,34272.0,0.29957544]
[1625563249108,0.08237544,34273.0,34272.0,0.29957544]
[1625563249259,0.08237544,34273.0,34272.0,0.24057544]
[1625563249915,0.02337544,34273.0,34265.0,0.24057544]
[1625563250016,0.08237544,34273.0,34265.0,0.29957544]
[1625563250117,0.08237544,34273.0,34266.0,0.5]
[1625563250218,0.08237544,34273.0,34266.0,0.50345193]
[1625563250317,0.08237544,34273.0,34266.0,0.56245193]
[1625563250517,0.08237544,34273.0,34266.0,0.059]
[1625563250771,0.08237544,34273.0,34254.0,0.058]
[1625563250890,0.14137544,34273.0,34254.0,0.001]
[1625563250970,0.96230176,34255.0,34254.0,0.001]
[1625563251071,1.27477176,34255.0,34254.0,0.001]
[1625563251170,1.33377176,34255.0,34254.0,0.001]
[1625563251268,1.27477176,34255.0,34254.0,0.00445287]
[1625563251576,1.33377176,34255.0,34254.0,0.00445287]
[1625563251869,1.33377176,34255.0,34244.0,0.503]
[1625563252170,1.27477176,34255.0,34244.0,0.503]
[1625563252268,1.33377176,34255.0,34244.0,0.003]
[1625563252373,1.33377176,34255.0,34250.0,0.00345344]
[1625563252670,1.39277176,34255.0,34250.0,0.00345344]
[1625563252870,1.39277176,34255.0,34244.0,0.003]
[1625563252971,0.24057544,34251.0,34244.0,0.003]
[1625563253170,0.29957544,34251.0,34250.0,0.00345377]
[1625563253472,0.35857544,34251.0,34244.0,0.003]
[1625563254174,0.057,34248.0,34244.0,0.003]
[1625563254275,0.2744,34248.0,34244.0,0.003]
[1625563254426,0.3334,34248.0,34244.0,0.003]
[1625563254778,0.056,34244.0,34204.0,0.50611005]
[1625563254880,0.056,34244.0,34213.0,0.9714]
[1625563254977,0.72172632,34240.0,34222.0,0.24057544]
[1625563255078,1.06947632,34240.0,34222.0,0.24057544]
[1625563255426,1.06947632,34240.0,34223.0,0.057]
[1625563256978,1.06947632,34240.0,34223.0,0.557]
[1625563257377,0.78072632,34240.0,34223.0,0.557]
[1625563257778,0.78072632,34240.0,34223.0,0.5]
[1625563257879,0.78072632,34240.0,34223.0,0.559]
[1625563258179,0.78072632,34240.0,34224.0,0.00345496]
[1625563258389,0.78072632,34240.0,34224.0,0.06245496]
[1625563258684,0.78072632,34240.0,34225.0,0.00345485]
[1625563258889,0.78072632,34240.0,34225.0,0.06245485]
[1625563258985,0.24057544,34231.0,34230.0,0.24057544]
[1625563259085,0.24057544,34231.0,34230.0,0.29957544]
[1625563259386,0.48115088,34240.0,34230.0,0.79957544]
[1625563259486,0.48115088,34240.0,34231.0,0.059]
[1625563259956,0.48115088,34240.0,34231.0,0.118]
[1625563260046,0.48115088,34240.0,34232.0,0.50345432]
[1625563260145,0.54015088,34240.0,34232.0,0.56245432]
[1625563260247,0.54015088,34240.0,34232.0,0.62145432]
[1625563260336,0.54015088,34240.0,34232.0,0.618]
[1625563260439,0.54015088,34240.0,34232.0,0.559]
[1625563260638,0.54015088,34240.0,34233.0,0.00345426]
[1625563260736,0.54015088,34240.0,34233.0,0.06245426]
[1625563260836,0.54015088,34240.0,34233.0,0.059]
[1625563260939,0.54015088,34240.0,34239.0,0.24057544]
[1625563261047,0.24057544,34244.0,34239.0,0.24057544]
[1625563261166,0.9368,34258.0,34239.0,1.13751544]
[1625563261238,0.003,34285.0,34239.0,1.13751544]
[1625563261239,0.4213125,34262.0,34239.0,1.07851544]
[1625563261340,0.4213125,34262.0,34240.0,0.059]
[1625563261438,1.0209,34261.0,34240.0,0.059]
[1625563261538,1.0209,34261.0,34240.0,0.118]
[1625563261639,1.0209,34261.0,34241.0,0.50345341]
[1625563261742,1.0209,34261.0,34241.0,0.56245341]
[1625563261842,1.0209,34261.0,34241.0,0.62145341]
[1625563261941,1.0209,34261.0,34242.0,0.00345339]
[1625563262039,0.059,34261.0,34242.0,0.00345339]
[1625563262141,0.059,34261.0,34242.0,0.06245339]
[1625563262538,0.059,34261.0,34243.0,0.00345332]
[1625563262639,0.059,34261.0,34243.0,0.06245332]
[1625563262739,0.059,34261.0,34243.0,0.12145332]
[1625563262840,0.059,34261.0,34244.0,0.5]
[1625563262940,0.059,34261.0,34260.0,0.48115088]
[1625563263041,0.059,34261.0,34260.0,0.76238088]
[1625563263141,0.059,34261.0,34260.0,1.26238088]
[1625563263541,0.0274,34261.0,34260.0,1.26238088]
[1625563263743,0.24057544,34262.0,34260.0,1.26238088]
[1625563264795,0.24057544,34265.0,34260.0,1.26238088]
[1625563264995,0.24057544,34265.0,34264.0,0.24057544]
[1625563265095,0.24057544,34265.0,34264.0,0.79957544]
[1625563265296,0.11417544,34265.0,34264.0,0.79957544]
[1625563265495,0.24057544,34272.0,34264.0,0.79957544]
[1625563265695,0.24057544,34277.0,34264.0,0.79957544]
[1625563266198,0.06,34275.0,34264.0,0.79957544]
[1625563266296,0.001,34275.0,34264.0,0.79957544]
[1625563267048,0.001,34275.0,34274.0,0.48115088]
[1625563267200,0.001,34275.0,34274.0,0.76138088]
[1625563268100,0.001,34275.0,34274.0,1.32038088]
[1625563268401,0.001,34275.0,34274.0,0.91616069]
[1625563268503,0.001,34275.0,34274.0,0.41616069]
[1625563268705,0.001,34275.0,34269.0,0.24057544]
[1625563268804,0.38217,34275.0,34264.0,0.24057544]
[1625563268902,0.004,34268.0,34264.0,0.24057544]
[1625563269005,0.48115088,34265.0,34264.0,0.24057544]
[1625563269206,0.54015088,34265.0,34264.0,0.24057544]
[1625563269503,0.59915088,34265.0,34264.0,0.24057544]
[1625563269603,0.48115088,34265.0,34264.0,0.29957544]
[1625563269702,0.48115088,34265.0,34264.0,0.79957544]
[1625563269905,0.48115088,34265.0,34264.0,0.29957544]
[1625563270304,0.54015088,34265.0,34264.0,0.29957544]
[1625563270404,0.48115088,34265.0,34264.0,0.29957544]
[1625563271357,0.54015088,34265.0,34264.0,0.29957544]
[1625563271508,0.48115088,34265.0,34264.0,0.29957544]
[1625563272209,0.48115088,34265.0,34264.0,0.24057544]
[1625563272810,0.54015088,34265.0,34264.0,0.24057544]
[1625563272909,0.48115088,34265.0,34264.0,0.24057544]
[1625563273010,0.54015088,34265.0,34264.0,0.24057544]
[1625563273111,0.48115088,34265.0,34264.0,0.24057544]
[1625563273212,0.24057544,34265.0,34264.0,0.29957544]
[1625563273342,0.20897544,34265.0,34264.0,0.85857544]
[1625563273510,0.004,34268.0,34264.0,0.85857544]
[1625563273615,0.004,34268.0,34264.0,1.13998544]
[1625563273809,0.004,34268.0,34264.0,0.63998544]
[1625563273911,0.063,34268.0,34264.0,0.58098544]
[1625563274316,0.004,34268.0,34264.0,0.58098544]
[1625563274418,0.004,34268.0,34265.0,0.5]
[1625563274515,0.004,34268.0,34265.0,0.559]
[1625563274616,0.24057544,34271.0,34265.0,0.559]
[1625563274865,0.29957544,34271.0,34265.0,0.559]
[1625563274966,0.29957544,34271.0,34265.0,0.059]
[1625563275065,0.29957544,34271.0,34270.0,0.24057544]
[1625563275165,0.24057544,34271.0,34270.0,0.24057544]
[1625563275265,0.29957544,34271.0,34270.0,0.24057544]
[1625563275367,0.24057544,34271.0,34270.0,0.24057544]
[1625563275665,0.29957544,34271.0,34270.0,0.24057544]
[1625563275815,0.24057544,34271.0,34270.0,0.24057544]
[1625563275921,0.24057544,34271.0,34264.0,0.30837]
[1625563276022,0.24057544,34271.0,34264.0,0.36737]
[1625563276119,0.24057544,34271.0,34265.0,0.5]
[1625563276230,0.24057544,34271.0,34265.0,0.559]
[1625563276315,0.24057544,34271.0,34265.0,0.618]
[1625563276467,0.005,34273.0,34265.0,0.559]
[1625563276969,0.064,34273.0,34265.0,0.559]
[1625563277070,0.005,34273.0,34272.0,0.48115088]
[1625563277371,0.005,34273.0,34272.0,0.81105088]
[1625563277572,0.005,34273.0,34272.0,1.31105088]
[1625563277821,0.005,34273.0,34272.0,0.81105088]
[1625563278221,0.064,34273.0,34272.0,0.81105088]
[1625563278422,0.005,34273.0,34272.0,0.81105088]
[1625563278522,0.005,34273.0,34272.0,1.37005088]
[1625563278623,0.005,34273.0,34272.0,0.87005088]
[1625563278722,0.005,34273.0,34272.0,0.81105088]
[1625563279076,0.064,34273.0,34272.0,0.81105088]
[1625563279422,0.064,34273.0,34272.0,0.87005088]
[1625563279773,0.064,34273.0,34272.0,0.81105088]
[1625563280227,0.064,34273.0,34272.0,0.87005088]
[1625563280378,0.064,34273.0,34272.0,0.81105088]
[1625563280477,0.064,34273.0,34272.0,0.48115088]
[1625563280575,0.064,34273.0,34272.0,0.54015088]
[1625563281132,0.064,34273.0,34272.0,0.79966088]
[1625563281680,0.064,34273.0,34272.0,0.74066088]
[1625563282279,0.064,34273.0,34272.0,0.79966088]
[1625563283084,0.30457544,34273.0,34272.0,0.79966088]
[1625563283685,0.30457544,34273.0,34272.0,0.74066088]
[1625563284134,0.30457544,34273.0,34247.0,0.37865]
[1625563284237,0.30457544,34273.0,34247.0,0.0881]
[1625563284335,0.30457544,34273.0,34260.0,0.2036]
[1625563284435,0.36357544,34273.0,34260.0,0.2036]
[1625563284736,0.42623851,34271.0,34260.0,0.2036]
[1625563284839,0.78524851,34271.0,34260.0,0.2036]
[1625563284936,0.84424851,34271.0,34260.0,0.2036]
[1625563285137,0.48115088,34261.0,34260.0,0.2036]
[1625563285237,0.79646088,34261.0,34260.0,0.2036]
[1625563286491,0.31531,34261.0,34260.0,0.2036]
[1625563286591,0.005,34262.0,34260.0,0.2036]
[1625563286996,0.005,34262.0,34260.0,0.2626]
[1625563287095,0.005,34262.0,34261.0,0.24057544]
[1625563287295,0.005,34262.0,34261.0,0.29957544]
[1625563287445,0.48115088,34267.0,34261.0,0.29957544]
[1625563287547,0.48115088,34267.0,34261.0,0.35857544]
[1625563287846,0.48115088,34267.0,34262.0,0.5]
[1625563287948,0.48115088,34267.0,34262.0,0.618]
[1625563288046,0.48115088,34267.0,34262.0,0.118]
[1625563288900,0.48115088,34267.0,34263.0,0.5]
[1625563288999,0.48115088,34267.0,34263.0,0.30265]
[1625563289102,0.24057544,34267.0,34266.0,0.24057544]
[1625563289202,0.24057544,34267.0,34266.0,0.29957544]
[1625563289301,0.24057544,34267.0,34266.0,0.35857544]
[1625563289854,0.20897544,34267.0,34266.0,0.35857544]
[1625563290054,0.20897544,34267.0,34266.0,0.85857544]
[1625563290155,0.20897544,34267.0,34266.0,0.86202729]
[1625563290555,0.24057544,34273.0,34266.0,0.86202729]
[1625563290757,0.24057544,34273.0,34266.0,0.36202729]
[1625563290955,0.24057544,34273.0,34267.0,0.0034518]
[1625563291054,0.24057544,34273.0,34267.0,0.0624518]
[1625563291154,0.24057544,34273.0,34272.0,0.24057544]
[1625563291254,0.24057544,34273.0,34272.0,0.29957544]
[1625563292006,0.24057544,34273.0,34272.0,0.24057544]
[1625563292407,0.25656228,34273.0,34272.0,0.24057544]
[1625563292756,0.25656228,34273.0,34272.0,0.29957544]
[1625563294008,0.25856228,34273.0,34272.0,0.29957544]
[1625563295912,0.25856228,34273.0,34272.0,0.64909544]
[1625563296416,0.24257544,34273.0,34272.0,0.64909544]
[1625563299518,0.24257544,34273.0,34272.0,0.65254689]
[1625563300522,0.24257544,34273.0,34272.0,0.64909544]
[1625563300821,0.002,34273.0,34272.0,1.15254675]
[1625563301021,0.002,34273.0,34272.0,0.65254675]
[1625563301120,0.002,34273.0,34272.0,0.89312219]
[1625563302675,0.002,34273.0,34272.0,0.88967088]
[1625563303028,0.002,34273.0,34272.0,0.89312222]
[1625563305380,0.002,34273.0,34272.0,0.88967088]
[1625563305832,0.002,34273.0,34272.0,0.89312217]
[1625563306132,0.002,34273.0,34272.0,0.88967088]
[1625563306331,0.002,34273.0,34272.0,0.48115088]
[1625563306432,0.002,34273.0,34272.0,0.54015088]
[1625563306842,0.002,34273.0,34272.0,0.48115088]
[1625563307183,0.24257544,34273.0,34272.0,0.48115088]
[1625563307382,0.24257544,34273.0,34272.0,0.54015088]
[1625563309736,0.24257544,34273.0,34266.0,5.42735088]
[1625563309836,0.30157544,34273.0,34266.0,5.48635088]
[1625563309935,0.30157544,34273.0,34266.0,5.42735088]
[1625563310038,0.53686544,34273.0,34266.0,0.48115088]
[1625563310136,0.53686544,34273.0,34261.0,0.001]
[1625563310137,0.53486544,34273.0,34269.0,0.001]
[1625563310236,0.59386544,34273.0,34269.0,0.001]
[1625563310337,0.01598488,34272.0,34269.0,0.001]
[1625563310436,0.07498488,34272.0,34269.0,0.001]
[1625563310536,0.13398488,34272.0,34269.0,0.001]
[1625563310837,0.13398488,34272.0,34264.0,0.002]
[1625563310838,0.27547677,34272.0,34264.0,0.002]
[1625563310936,0.01598511,34271.0,34264.0,0.002]
[1625563311037,0.07498511,34271.0,34264.0,0.002]
[1625563311142,0.118,34271.0,34264.0,0.002]
[1625563311243,0.48115088,34265.0,34264.0,0.002]
[1625563311343,0.48115088,34265.0,34264.0,0.061]
[1625563312299,0.48115088,34265.0,34264.0,0.12]
[1625563312491,0.48115088,34265.0,34264.0,0.12345188]
[1625563313244,0.48115088,34265.0,34264.0,0.36402732]
[1625563313564,0.24057544,34273.0,34264.0,0.86402732]
[1625563313666,0.24057544,34273.0,34264.0,1.10114732]
[1625563313748,0.24057544,34273.0,34267.0,5.0311]
[1625563313896,0.24057544,34273.0,34267.0,5.1491]
[1625563313996,0.24057544,34273.0,34267.0,5.6491]
[1625563314149,0.24057544,34273.0,34268.0,0.00345126]
[1625563314246,0.24057544,34273.0,34268.0,0.06245126]
[1625563314346,0.24057544,34273.0,34268.0,0.12145126]
[1625563314446,0.24057544,34273.0,34268.0,0.62145126]
[1625563314697,0.24057544,34273.0,34269.0,0.00345122]
[1625563314796,0.24057544,34273.0,34269.0,0.12145122]
[1625563315199,0.24057544,34273.0,34270.0,0.00345135]
[1625563315301,0.24057544,34273.0,34272.0,0.24057544]
[1625563315701,0.24057544,34273.0,34272.0,0.29957544]
[1625563315901,0.24057544,34273.0,34272.0,0.24057544]
[1625563317154,0.24057544,34273.0,34267.0,5.27167544]
[1625563317255,0.24057544,34268.0,34267.0,5.27167544]
[1625563317355,0.24057544,34268.0,34267.0,5.33067544]
[1625563317605,0.24057544,34268.0,34267.0,5.334127]
[1625563317806,0.24057544,34268.0,34267.0,5.275127]
[1625563317912,0.24057544,34268.0,34264.0,0.24257544]
[1625563318859,0.38261691,34268.0,34264.0,0.24257544]
[1625563319058,0.38261691,34268.0,34264.0,0.30157544]
[1625563319264,0.24057544,34265.0,34264.0,0.30157544]
[1625563319561,0.24057544,34265.0,34264.0,0.29957544]
[1625563319664,0.24057544,34265.0,34260.0,0.1466]
[1625563319772,0.55674544,34265.0,34264.0,0.00345197]
[1625563319868,0.55674544,34265.0,15042.0,0.42860116]
[1625563319974,0.61574544,34265.0,34255.0,0.003]
[1625563320082,0.69073201,34265.0,34256.0,0.51535539]
[1625563320369,0.01599883,34264.0,34254.0,1.03071078]
[1625563320566,0.99202247,34261.0,34246.0,1.20465386]
[1625563320765,1.05102247,34261.0,34246.0,1.20465386]
[1625563320867,0.059,34261.0,34251.0,0.00345266]
[1625563321267,0.72172632,34252.0,34251.0,0.00345266]
[1625563321673,0.78072632,34252.0,34251.0,0.00345266]
[1625563321774,0.78072632,34252.0,34251.0,0.06245266]
[1625563322071,0.059,34252.0,34251.0,0.06245266]
[1625563322725,0.9927978,34264.0,34251.0,0.06245266]
[1625563322928,1.0517978,34264.0,34251.0,0.35252266]
[1625563323025,1.0517978,34264.0,34252.0,0.00345232]
[1625563323125,0.28404427,34262.0,34255.0,0.34414464]
[1625563323324,0.48115088,34256.0,34255.0,0.58472008]
[1625563323526,0.48115088,34256.0,34255.0,1.50401231]
[1625563323828,0.48115088,34256.0,34255.0,1.50746432]
[1625563324126,0.44955088,34256.0,34255.0,2.8841867]
[1625563324226,0.44955088,34256.0,34255.0,2.9431867]
[1625563324326,0.44955088,34256.0,34255.0,2.95223651]
[1625563324425,0.24057544,34263.0,34255.0,2.95223651]
[1625563324526,0.29957544,34263.0,34255.0,2.95223651]
[1625563324628,0.29957544,34263.0,34256.0,0.5]
[1625563324727,0.29957544,34263.0,34256.0,0.50904951]
[1625563324828,0.29957544,34263.0,34256.0,0.56804951]
[1625563324928,0.29957544,34263.0,34257.0,0.01250102]
[1625563325030,0.29957544,34263.0,34259.0,1.20454273]
[1625563325127,0.29957544,34263.0,34259.0,1.49372273]
[1625563325229,0.29957544,34263.0,34259.0,1.55272273]
[1625563325329,0.29957544,34263.0,34262.0,0.24057544]
[1625563325428,0.29957544,34263.0,34262.0,0.29957544]
[1625563325730,0.24057544,34268.0,34262.0,0.80302679]
[1625563325980,0.24057544,34268.0,34263.0,0.00345132]
[1625563326181,0.24057544,34268.0,34263.0,0.06245132]
[1625563326480,0.24057544,34268.0,34264.0,1.20437486]
[1625563326579,0.24057544,34268.0,34264.0,1.20782625]
[1625563326781,0.24057544,34268.0,34265.0,0.3441151]
[1625563326884,0.24057544,34268.0,34265.0,0.34756641]
[1625563327082,0.24057544,34268.0,34266.0,0.00345126]
[1625563327196,0.24057544,34268.0,34267.0,0.34410775]
[1625563327391,0.24057544,34268.0,34267.0,0.58468319]
[1625563327504,0.24057544,34268.0,34267.0,0.24057544]
[1625563327792,0.24057544,34268.0,34267.0,0.24402673]
[1625563327887,0.24057544,34268.0,34267.0,0.55347673]
[1625563328198,0.24057544,34271.0,34267.0,0.55347673]
[1625563328289,0.7964321,34277.0,34267.0,0.55347673]
[1625563328430,0.003,34285.0,34267.0,0.61247673]
[1625563328431,0.2811395,34276.0,34267.0,0.61247673]
[1625563328638,0.2811395,34276.0,34268.0,0.00345016]
[1625563328709,1.13974654,34278.0,34268.0,0.93937416]
[1625563328710,0.92008604,34278.0,34268.0,0.93937416]
[1625563328789,0.92008604,34278.0,34269.0,0.00903571]
[1625563328891,0.86388604,34278.0,34269.0,0.00903571]
[1625563328992,0.72208604,34278.0,34269.0,0.00903571]
[1625563329106,0.72208604,34278.0,34270.0,0.01207286]
[1625563329192,0.69048604,34278.0,34270.0,0.45190986]
[1625563329291,0.00068604,34280.0,34271.0,0.5]
[1625563329394,1.18305804,34282.0,34279.0,0.72172632]
[1625563329495,0.003,34285.0,34280.0,0.5]
[1625563329596,0.003,34285.0,34282.0,0.059]
[1625563329792,1.28695603,34294.0,34282.0,0.059]
[1625563329890,1.28695603,34294.0,34283.0,0.01245135]
[1625563329991,1.28695603,34294.0,34283.0,0.07145135]
[1625563330195,1.28695603,34294.0,34284.0,0.01240892]
[1625563330314,0.9423,34298.0,34284.0,1.73168222]
[1625563330393,0.9423,34298.0,34284.0,1.78172214]
[1625563330496,0.9423,34298.0,34284.0,1.7192733]
[1625563330595,0.9423,34298.0,34284.0,0.059]
[1625563330694,0.9423,34298.0,34280.0,0.5]
[1625563330797,0.063,34290.0,34279.0,0.72172632]
[1625563330901,0.004,34290.0,34280.0,0.059]
[1625563330999,0.059,34290.0,34280.0,0.059]
[1625563331400,0.059,34290.0,34289.0,0.48115088]
[1625563331502,0.24057544,34295.0,34289.0,0.48115088]
[1625563331599,0.9423,34298.0,34289.0,0.48115088]
[1625563331600,0.9423,34298.0,34289.0,0.54015088]
[1625563331698,0.059,34295.0,34289.0,0.54015088]
[1625563331803,1.0013,34298.0,34289.0,0.54015088]
[1625563331903,0.9423,34298.0,34289.0,0.54015088]
[1625563332100,1.0013,34298.0,34289.0,0.54015088]
[1625563332506,1.0013,34298.0,34289.0,0.48115088]
[1625563333403,1.0013,34298.0,34297.0,0.24057544]
[1625563334505,0.9423,34298.0,34297.0,0.24057544]
[1625563334704,1.0013,34298.0,34297.0,0.24057544]
[1625563334806,1.0013,34298.0,34295.0,0.23553]
[1625563335005,1.0013,34298.0,34295.0,0.29453]
[1625563335207,0.9423,34298.0,34295.0,0.29453]
[1625563335306,1.0013,34298.0,34295.0,0.29453]
[1625563335408,0.9423,34298.0,34295.0,0.53510544]
[1625563335660,1.0013,34298.0,34295.0,0.53510544]
[1625563336308,1.0013,34298.0,34295.0,0.47610544]
[1625563336409,1.0013,34298.0,34295.0,0.24057544]
[1625563336661,1.0013,34298.0,34295.0,0.059]
[1625563337411,0.48115088,34296.0,34295.0,0.29957544]
[1625563337512,0.54015088,34296.0,34295.0,0.29957544]
[1625563337811,0.54015088,34296.0,34295.0,0.24057544]
[1625563338262,0.54015088,34296.0,34295.0,7.544e-05]
[1625563338761,0.59915088,34296.0,34295.0,7.544e-05]
[1625563338861,0.59915088,34296.0,34289.0,0.0725]
[1625563338961,0.59915088,34296.0,34266.0,0.057]
[1625563339061,0.059,34289.0,34267.0,0.1315]
[1625563339161,0.42653,34289.0,34267.0,0.1315]
[1625563339260,0.42653,34289.0,34267.0,0.0725]
[1625563339462,0.53946544,34277.0,34276.0,0.24057544]
[1625563339564,0.59846544,34277.0,34276.0,0.24057544]
[1625563339661,0.28496,34277.0,34276.0,0.24057544]
[1625563340164,0.28496,34277.0,34272.0,0.24057544]
[1625563340567,0.28496,34277.0,34272.0,0.29957544]
[1625563340765,0.28496,34277.0,34272.0,0.35857544]
[1625563341466,0.24057544,34273.0,34272.0,0.35857544]
[1625563341668,0.24057544,34273.0,34272.0,0.29957544]
[1625563342217,0.24057544,34273.0,34272.0,0.35857544]
[1625563342722,0.24057544,34273.0,34272.0,0.29957544]
[1625563342923,0.24057544,34273.0,34272.0,0.24057544]
[1625563343124,0.24057544,34279.0,34272.0,0.58539544]
[1625563343224,0.24057544,34282.0,34272.0,0.58539544]
[1625563343423,0.24057544,34282.0,34281.0,0.48115088]
[1625563343622,0.24057544,34282.0,34281.0,0.54015088]
[1625563343725,0.24057544,34282.0,34281.0,0.59915088]
[1625563343825,0.24057544,34282.0,34281.0,0.54015088]
[1625563344428,0.24057544,34282.0,34281.0,0.48115088]
[1625563346231,0.29957544,34282.0,34281.0,0.24057544]
[1625563346330,0.35857544,34282.0,34276.0,0.24057544]
[1625563346431,0.68814544,34282.0,34276.0,0.24057544]
[1625563347136,0.68814544,34282.0,34274.0,0.005]
[1625563347446,0.72172632,34275.0,34274.0,0.005]
[1625563347658,1.15562632,34275.0,34274.0,0.005]
[1625563347937,1.09662632,34275.0,34274.0,0.005]
[1625563348139,1.15562632,34275.0,34274.0,0.005]
[1625563348248,1.15562632,34275.0,34263.0,0.24057544]
[1625563348249,1.09662632,34275.0,34263.0,0.24057544]
[1625563348343,1.03762632,34275.0,34263.0,0.24057544]
[1625563348450,1.03762632,34275.0,34267.0,0.1315]
[1625563348537,1.03762632,34275.0,34267.0,0.1905]
[1625563348635,1.03762632,34275.0,34267.0,0.1315]
[1625563348736,1.03762632,34275.0,34267.0,0.1905]
[1625563348836,1.03762632,34275.0,34267.0,0.1315]
[1625563349138,1.09662632,34275.0,34267.0,0.1315]
[1625563349240,1.09662632,34275.0,34267.0,0.0725]
[1625563349440,0.48115088,34268.0,34267.0,0.0725]
[1625563349641,0.80925088,34268.0,34267.0,0.0725]
[1625563353598,0.80925088,34268.0,34267.0,0.1315]
[1625563353699,0.80925088,34268.0,34267.0,0.0725]
[1625563354966,0.86825088,34268.0,34267.0,0.0725]
[1625563355255,0.80925088,34268.0,34267.0,0.0725]
[1625563355505,1.04982632,34268.0,34267.0,0.0725]
[1625563355899,1.10882632,34268.0,34267.0,0.0725]
[1625563356109,1.16782632,34268.0,34260.0,0.24057544]
[1625563356214,1.16782632,34268.0,34256.0,0.24057544]
[1625563356303,1.16782632,34268.0,34253.0,0.24057544]
[1625563357104,1.16782632,34268.0,34246.0,1.02677734]
[1625563357503,0.72172632,34250.0,34246.0,1.02677734]
[1625563357606,1.02593632,34250.0,34246.0,1.02677734]
[1625563357706,1.08493632,34250.0,34246.0,1.02677734]
[1625563358104,1.02593632,34250.0,34246.0,1.02677734]
[1625563358455,1.02593632,34250.0,34245.0,1.02667963]
[1625563358758,1.02593632,34250.0,34249.0,0.25057544]
[1625563361613,1.02593632,34250.0,34249.0,0.24457544]
[1625563363315,1.02593632,34250.0,34249.0,0.004]
[1625563364067,1.08493632,34250.0,34249.0,0.004]
[1625563364217,1.02593632,34250.0,34249.0,0.004]
[1625563364669,1.08493632,34250.0,34249.0,0.004]
[1625563364869,1.02593632,34250.0,34249.0,0.004]
[1625563365269,1.08493632,34250.0,34249.0,0.004]
[1625563365419,1.02593632,34250.0,34249.0,0.004]
[1625563366174,0.72172632,34250.0,34249.0,0.004]
[1625563367472,0.72172632,34250.0,34249.0,0.063]
[1625563367577,0.72172632,34250.0,34249.0,0.24457544]
[1625563367924,0.72172632,34250.0,34249.0,0.30357544]
[1625563368475,0.44955088,34250.0,34249.0,0.30357544]
[1625563368576,0.24057544,34254.0,34249.0,0.30357544]
[1625563368879,0.29957544,34254.0,34249.0,0.30357544]
[1625563368983,0.24057544,34254.0,34249.0,0.30357544]
[1625563369079,0.9569,34259.0,34249.0,0.36257544]
[1625563369181,1.0159,34259.0,34250.0,0.5]
[1625563369280,1.0159,34259.0,34250.0,0.559]
[1625563369380,1.0159,34259.0,34250.0,0.618]
[1625563369509,1.0159,34259.0,34251.0,0.00345162]
[1625563369582,0.24057544,34257.0,34253.0,0.24057544]
[1625563369698,0.29957544,34257.0,34253.0,0.24057544]
[1625563370084,0.24057544,34257.0,34253.0,0.24057544]
[1625563370182,0.24057544,34257.0,34253.0,0.29957544]
[1625563370485,0.24057544,34257.0,34254.0,0.00345134]
[1625563370583,0.24057544,34257.0,34254.0,0.28819134]
[1625563370682,0.24057544,34257.0,34254.0,0.40619134]
[1625563370883,0.20897544,34257.0,34254.0,0.40619134]
[1625563370983,0.20897544,34257.0,34255.0,0.5]
[1625563371081,0.20897544,34257.0,34255.0,0.56245117]
[1625563371182,0.14577544,34257.0,34255.0,0.56245117]
[1625563371282,0.14577544,34257.0,34255.0,0.559]
[1625563371383,0.14577544,34257.0,34255.0,0.618]
[1625563371384,0.11417544,34257.0,34255.0,0.618]
[1625563371481,0.05097544,34257.0,34255.0,0.618]
[1625563371582,0.9569,34259.0,34256.0,0.24402654]
[1625563371685,0.9569,34259.0,34257.0,0.5]
[1625563371785,0.9569,34259.0,34257.0,0.618]
[1625563371882,0.9569,34259.0,34257.0,0.62145091]
[1625563371983,0.9569,34259.0,34257.0,0.56245091]
[1625563372082,0.9569,34259.0,34258.0,0.00345084]
[1625563372183,0.9569,34259.0,34258.0,1.02779694]
[1625563372284,0.9569,34259.0,34258.0,1.64579694]
[1625563372384,0.9569,34259.0,34258.0,1.58679694]
[1625563372589,0.9569,34259.0,34258.0,1.64579694]
[1625563372937,0.9569,34259.0,34258.0,1.58679694]
[1625563373141,0.9569,34259.0,34258.0,1.64579694]
[1625563373241,0.9569,34259.0,34258.0,5.19019694]
[1625563373638,0.9569,34259.0,34258.0,5.43077238]
[1625563373740,0.9569,34259.0,34258.0,4.87177238]
[1625563373941,0.9569,34259.0,34258.0,3.84742628]
[1625563375043,0.9569,34259.0,34258.0,3.78842628]
[1625563375143,0.9569,34259.0,34258.0,3.84742628]
[1625563375242,0.9569,34259.0,34258.0,3.78842628]
[1625563375641,0.9569,34259.0,34258.0,3.84742628]
[1625563375741,0.9569,34259.0,34258.0,3.78842628]
[1625563375843,0.9569,34259.0,34258.0,3.84742628]
[1625563375943,0.9569,34259.0,34258.0,3.78842628]
[1625563376045,0.9569,34259.0,34258.0,3.84742628]
[1625563376144,0.9569,34259.0,34258.0,3.78842628]
[1625563376345,0.9569,34259.0,34258.0,3.84742628]
[1625563376546,0.9569,34259.0,34258.0,4.34742628]
[1625563376747,0.9569,34259.0,34258.0,4.40642628]
[1625563376997,0.9569,34259.0,34258.0,3.84742628]
[1625563378149,1.23706,34259.0,34258.0,3.78842628]
[1625563379100,1.23706,34259.0,34258.0,3.84742628]
[1625563379202,1.23706,34259.0,34258.0,3.78842628]
[1625563379503,1.23706,34259.0,34258.0,3.84742628]
[1625563379602,1.23706,34259.0,34258.0,3.78842628]
[1625563379802,1.23706,34259.0,34258.0,3.84742628]
[1625563380506,1.23706,34259.0,34258.0,3.84397544]
[1625563380808,1.23706,34259.0,34258.0,3.8474266]
[1625563380905,0.9569,34259.0,34258.0,3.8474266]
[1625563383358,0.9569,34259.0,34258.0,3.93279946]
[1625563383458,0.9569,34259.0,34258.0,3.87379946]
[1625563384664,0.9569,34259.0,34258.0,3.7884266]
[1625563385665,1.19747544,34259.0,34258.0,3.7884266]
[1625563386017,1.19747544,34259.0,34258.0,3.8474266]